[Event "Late-Titled-Tuesday-Blitz-June-04-2024"]
[Site "Chess.com"]
[Date "2024.06.04"]
[Round "4"]
[White "rasmussvane"]
[Black "DishonorOnYourCow"]
[Result "1-0"]
[WhiteElo "2918"]
[BlackElo "2577"]
[TimeControl "180+1"]
[EndTime "14:37:09 PDT"]
[Termination "rasmussvane won by resignation"]

1. Nf3 {[%clk 0:03:00.9]} 1... Nf6 {[%clk 0:03:00.2]} 2. g3 {[%clk 0:03:00.4]}
2... g6 {[%clk 0:03:00.6]} 3. Bg2 {[%clk 0:03:01.1]} 3... Bg7 {[%clk 0:03:01]}
4. O-O {[%clk 0:03:01.7]} 4... O-O {[%clk 0:03:00.9]} 5. d4 {[%clk 0:03:02.2]}
5... d5 {[%clk 0:03:01.1]} 6. c4 {[%clk 0:03:02.8]} 6... dxc4 {[%clk 0:03:01.1]}
7. Na3 {[%clk 0:03:02.7]} 7... a5 {[%clk 0:02:55.2]} 8. Nxc4 {[%clk 0:03:01.9]}
8... a4 {[%clk 0:02:55.7]} 9. Re1 {[%clk 0:02:57.2]} 9... c6 {[%clk 0:02:51.1]}
10. e4 {[%clk 0:02:55.4]} 10... Be6 {[%clk 0:02:43.8]} 11. Qc2 {[%clk
0:02:43.2]} 11... Nbd7 {[%clk 0:02:38.9]} 12. Bf4 {[%clk 0:02:38.8]} 12... Nb6
{[%clk 0:02:35.7]} 13. Nce5 {[%clk 0:02:30.6]} 13... Nfd7 {[%clk 0:02:29.9]} 14.
Nd3 {[%clk 0:02:26.3]} 14... Bc4 {[%clk 0:01:44.3]} 15. Red1 {[%clk 0:02:25.3]}
15... Nf6 {[%clk 0:01:19.7]} 16. Nc5 {[%clk 0:02:19.1]} 16... Qc8 {[%clk
0:01:11.8]} 17. Ne5 {[%clk 0:02:09.3]} 17... Bb5 {[%clk 0:01:10.8]} 18. Rac1
{[%clk 0:02:06.4]} 18... Nbd7 {[%clk 0:01:09.7]} 19. Bh3 {[%clk 0:02:03.2]}
19... e6 {[%clk 0:01:09]} 20. Nexd7 {[%clk 0:00:57.8]} 20... Nxd7 {[%clk
0:01:08.4]} 21. Nxd7 {[%clk 0:00:53.6]} 21... Qxd7 {[%clk 0:01:08.1]} 22. d5
{[%clk 0:00:54]} 22... cxd5 {[%clk 0:01:06.2]} 23. exd5 {[%clk 0:00:54.4]} 23...
Rac8 {[%clk 0:01:00.1]} 24. dxe6 {[%clk 0:00:47.5]} 24... fxe6 {[%clk 0:00:43]}
25. Rxd7 {[%clk 0:00:43.6]} 25... Rxc2 {[%clk 0:00:35.6]} 26. Rxg7+ {[%clk
0:00:43.5]} 26... Kxg7 {[%clk 0:00:33.4]} 27. Rxc2 {[%clk 0:00:43.7]} 27... Rd8
{[%clk 0:00:30.3]} 28. Be5+ {[%clk 0:00:42.4]} 1-0

[Event "Late-Titled-Tuesday-Blitz-June-04-2024"]
[Site "Chess.com"]
[Date "2024.06.04"]
[Round "4"]
[White "Eloist"]
[Black "charly871"]
[Result "0-1"]
[WhiteElo "2442"]
[BlackElo "2314"]
[TimeControl "180+1"]
[EndTime "14:37:13 PDT"]
[Termination "charly871 won on time"]

1. e4 {[%clk 0:03:00.9]} 1... g6 {[%clk 0:02:59.4]} 2. d4 {[%clk 0:03:00.2]}
2... Bg7 {[%clk 0:02:58.1]} 3. Nc3 {[%clk 0:02:59.8]} 3... d6 {[%clk 0:02:58.4]}
4. Nf3 {[%clk 0:02:59.7]} 4... a6 {[%clk 0:02:58]} 5. Bc4 {[%clk 0:02:59.3]}
5... e6 {[%clk 0:02:56.9]} 6. a4 {[%clk 0:02:58.4]} 6... b6 {[%clk 0:02:56.8]}
7. O-O {[%clk 0:02:57.9]} 7... Bb7 {[%clk 0:02:57.1]} 8. Re1 {[%clk 0:02:57.6]}
8... Ne7 {[%clk 0:02:56.6]} 9. Bf4 {[%clk 0:02:55.7]} 9... Nd7 {[%clk
0:02:55.2]} 10. h3 {[%clk 0:02:55.3]} 10... O-O {[%clk 0:02:52.9]} 11. Qd2
{[%clk 0:02:55.2]} 11... d5 {[%clk 0:02:49.4]} 12. Bd3 {[%clk 0:02:44.1]} 12...
dxe4 {[%clk 0:02:46.7]} 13. Bxe4 {[%clk 0:02:42.8]} 13... Bxe4 {[%clk
0:02:46.6]} 14. Nxe4 {[%clk 0:02:42.6]} 14... Nf5 {[%clk 0:02:46.4]} 15. Rad1
{[%clk 0:02:25]} 15... Nf6 {[%clk 0:02:32.8]} 16. Bg5 {[%clk 0:01:35.3]} 16...
Nxe4 {[%clk 0:02:31.4]} 17. Rxe4 {[%clk 0:01:34.7]} 17... Qd5 {[%clk 0:02:30.8]}
18. Qe2 {[%clk 0:01:27.5]} 18... h6 {[%clk 0:02:25.5]} 19. Bf4 {[%clk
0:01:22.5]} 19... c5 {[%clk 0:02:18.4]} 20. c4 {[%clk 0:01:16.3]} 20... Qc6
{[%clk 0:02:10.9]} 21. d5 {[%clk 0:01:14.4]} 21... exd5 {[%clk 0:02:09.5]} 22.
cxd5 {[%clk 0:01:15.3]} 22... Qd7 {[%clk 0:02:05.5]} 23. g4 {[%clk 0:01:11.5]}
23... Nd6 {[%clk 0:02:02.6]} 24. Re7 {[%clk 0:01:11]} 24... Qd8 {[%clk
0:02:02.7]} 25. Re1 {[%clk 0:00:51.6]} 25... b5 {[%clk 0:01:55.7]} 26. Qe3
{[%clk 0:00:43.8]} 26... Nc4 {[%clk 0:01:51.1]} 27. Qxc5 {[%clk 0:00:42.1]}
27... Nxb2 {[%clk 0:01:47.1]} 28. Bc7 {[%clk 0:00:20]} 28... Nxa4 {[%clk
0:01:46]} 29. Bxd8 {[%clk 0:00:15.6]} 29... Nxc5 {[%clk 0:01:45.4]} 30. Bb6
{[%clk 0:00:15.3]} 30... Nd3 {[%clk 0:01:43.4]} 31. Rd1 {[%clk 0:00:15.6]} 31...
Nb2 {[%clk 0:01:41.6]} 32. Rc1 {[%clk 0:00:12.1]} 32... Nc4 {[%clk 0:01:41.6]}
33. Bc7 {[%clk 0:00:10.7]} 33... Bf6 {[%clk 0:01:37.7]} 34. Re4 {[%clk
0:00:08.4]} 34... Bd8 {[%clk 0:01:35.5]} 35. d6 {[%clk 0:00:07.1]} 35... Bxc7
{[%clk 0:01:35.1]} 36. dxc7 {[%clk 0:00:07.2]} 36... Rfc8 {[%clk 0:01:33.9]} 37.
Re7 {[%clk 0:00:05.7]} 37... Ra7 {[%clk 0:01:34.1]} 38. Ne5 {[%clk 0:00:02.7]}
38... Nxe5 {[%clk 0:01:33.6]} 39. Rxe5 {[%clk 0:00:01.5]} 39... Raxc7 {[%clk
0:01:33.9]} 0-1

[Event "Late-Titled-Tuesday-Blitz-June-04-2024"]
[Site "Chess.com"]
[Date "2024.06.04"]
[Round "4"]
[White "Kapitan_Bayan"]
[Black "tactic"]
[Result "1-0"]
[WhiteElo "2383"]
[BlackElo "2563"]
[TimeControl "180+1"]
[EndTime "14:37:14 PDT"]
[Termination "Kapitan_Bayan won by checkmate"]

1. e4 {[%clk 0:03:00.9]} 1... d5 {[%clk 0:02:59.6]} 2. exd5 {[%clk 0:03:00.8]}
2... c6 {[%clk 0:03:00.5]} 3. dxc6 {[%clk 0:02:59.6]} 3... Nxc6 {[%clk
0:03:01.4]} 4. Nf3 {[%clk 0:02:58.5]} 4... e5 {[%clk 0:03:02.3]} 5. Bb5 {[%clk
0:02:52.9]} 5... Bd6 {[%clk 0:03:02.7]} 6. d4 {[%clk 0:02:48.4]} 6... exd4
{[%clk 0:03:03.6]} 7. Nxd4 {[%clk 0:02:43.9]} 7... Ne7 {[%clk 0:03:03.6]} 8.
Nxc6 {[%clk 0:02:40.8]} 8... bxc6 {[%clk 0:03:04.5]} 9. Be2 {[%clk 0:02:39]}
9... O-O {[%clk 0:03:03.9]} 10. O-O {[%clk 0:02:34.8]} 10... Qc7 {[%clk
0:03:02.8]} 11. g3 {[%clk 0:02:32.8]} 11... Bh3 {[%clk 0:03:01.1]} 12. Re1
{[%clk 0:02:31.8]} 12... Rad8 {[%clk 0:03:00.9]} 13. Nd2 {[%clk 0:02:28]} 13...
Bc5 {[%clk 0:02:55.9]} 14. Bf3 {[%clk 0:02:16.3]} 14... Qb6 {[%clk 0:02:50.8]}
15. Qe2 {[%clk 0:02:14.2]} 15... Nf5 {[%clk 0:02:49.4]} 16. Ne4 {[%clk
0:02:10.6]} 16... Nd4 {[%clk 0:02:47.8]} 17. Qd3 {[%clk 0:02:03.9]} 17... Nb3
{[%clk 0:02:35.9]} 18. Qxb3 {[%clk 0:01:59]} 18... Bb4 {[%clk 0:02:19.8]} 19.
Be3 {[%clk 0:01:39.9]} 19... Qa5 {[%clk 0:02:14.6]} 20. c3 {[%clk 0:01:33.8]}
20... Qf5 {[%clk 0:02:15.3]} 21. Ng5 {[%clk 0:01:23.9]} 21... Be7 {[%clk
0:02:05.3]} 22. Be4 {[%clk 0:01:23.7]} 22... Qg4 {[%clk 0:02:00.8]} 23. Nxh3
{[%clk 0:01:06.3]} 23... Qxh3 {[%clk 0:01:54.5]} 24. Bg2 {[%clk 0:01:05.8]}
24... Qf5 {[%clk 0:01:48.8]} 25. Rad1 {[%clk 0:01:05.2]} 25... Rb8 {[%clk
0:01:46.6]} 26. Qa4 {[%clk 0:00:58]} 26... Rxb2 {[%clk 0:01:45.5]} 27. Bxa7
{[%clk 0:00:51.6]} 27... Bf6 {[%clk 0:01:30.1]} 28. Qe4 {[%clk 0:00:43.6]} 28...
Qa5 {[%clk 0:01:28.3]} 29. Bd4 {[%clk 0:00:41.3]} 29... Qxa2 {[%clk 0:01:25.2]}
30. Bxf6 {[%clk 0:00:39.5]} 30... gxf6 {[%clk 0:01:25.7]} 31. Qf5 {[%clk
0:00:35.3]} 31... Kg7 {[%clk 0:01:19.3]} 32. Rd4 {[%clk 0:00:33.7]} 32... h5
{[%clk 0:01:18.4]} 33. Qxh5 {[%clk 0:00:31.5]} 33... f5 {[%clk 0:01:00.5]} 34.
Qxf5 {[%clk 0:00:30.8]} 34... Rb5 {[%clk 0:00:57.5]} 35. Rg4+ {[%clk 0:00:29.5]}
35... Kh6 {[%clk 0:00:58]} 36. Qf6+ {[%clk 0:00:28.6]} 36... Kh5 {[%clk
0:00:58.2]} 37. Rh4# {[%clk 0:00:28.2]} 1-0

[Event "Late-Titled-Tuesday-Blitz-June-04-2024"]
[Site "Chess.com"]
[Date "2024.06.04"]
[Round "4"]
[White "ArtemDyachuk"]
[Black "Dexter_Dyke"]
[Result "1-0"]
[WhiteElo "2673"]
[BlackElo "2473"]
[TimeControl "180+1"]
[EndTime "14:37:18 PDT"]
[Termination "ArtemDyachuk won by checkmate"]

1. d4 {[%clk 0:03:00.9]} 1... Nf6 {[%clk 0:03:00]} 2. c4 {[%clk 0:02:59.9]} 2...
c5 {[%clk 0:03:00.2]} 3. d5 {[%clk 0:02:59.3]} 3... e5 {[%clk 0:03:00.6]} 4. Nc3
{[%clk 0:02:56]} 4... d6 {[%clk 0:03:01]} 5. e4 {[%clk 0:02:54.7]} 5... Be7
{[%clk 0:03:01.6]} 6. h3 {[%clk 0:02:51.3]} 6... h5 {[%clk 0:03:01.3]} 7. Nf3
{[%clk 0:02:50.9]} 7... Nbd7 {[%clk 0:03:01.8]} 8. Bg5 {[%clk 0:02:48.9]} 8...
Nf8 {[%clk 0:03:00.4]} 9. Bd3 {[%clk 0:02:44]} 9... Ng6 {[%clk 0:03:00.4]} 10.
O-O {[%clk 0:02:43.9]} 10... h4 {[%clk 0:03:00.5]} 11. Ne2 {[%clk 0:02:31.3]}
11... Nh5 {[%clk 0:03:00.4]} 12. Be3 {[%clk 0:02:28.3]} 12... Ngf4 {[%clk
0:02:56.3]} 13. Nxf4 {[%clk 0:02:21.4]} 13... exf4 {[%clk 0:02:56.3]} 14. Bd2
{[%clk 0:02:21.2]} 14... Bf6 {[%clk 0:02:55.6]} 15. e5 {[%clk 0:02:20.9]} 15...
dxe5 {[%clk 0:02:53.3]} 16. Re1 {[%clk 0:02:19.6]} 16... O-O {[%clk 0:02:43]}
17. Nxe5 {[%clk 0:02:09]} 17... g6 {[%clk 0:02:33]} 18. Bc3 {[%clk 0:02:08.3]}
18... Ng7 {[%clk 0:02:26]} 19. Qf3 {[%clk 0:02:02.5]} 19... Bg5 {[%clk
0:02:06.5]} 20. b4 {[%clk 0:01:41.3]} 20... cxb4 {[%clk 0:01:59.6]} 21. Bxb4
{[%clk 0:01:42.2]} 21... Re8 {[%clk 0:02:00.2]} 22. Rad1 {[%clk 0:01:07.7]}
22... Nf5 {[%clk 0:01:55.9]} 23. Ng4 {[%clk 0:00:46.2]} 23... Bd7 {[%clk
0:01:49.7]} 24. Bc3 {[%clk 0:00:43.5]} 24... Qb6 {[%clk 0:01:23.5]} 25. Be4
{[%clk 0:00:36.3]} 25... Rac8 {[%clk 0:01:12.7]} 26. Bd4 {[%clk 0:00:33.1]}
26... Qa6 {[%clk 0:01:12.3]} 27. Ba1 {[%clk 0:00:28.8]} 27... b6 {[%clk
0:00:59.5]} 28. Qc3 {[%clk 0:00:26.1]} 28... Kh7 {[%clk 0:00:53.3]} 29. Bxf5
{[%clk 0:00:20]} 29... Bxf5 {[%clk 0:00:51.9]} 30. Qg7# {[%clk 0:00:18.3]} 1-0

[Event "Late-Titled-Tuesday-Blitz-June-04-2024"]
[Site "Chess.com"]
[Date "2024.06.04"]
[Round "4"]
[White "Harry_Rakkel"]
[Black "dimitrisl"]
[Result "1-0"]
[WhiteElo "2701"]
[BlackElo "2504"]
[TimeControl "180+1"]
[EndTime "14:37:20 PDT"]
[Termination "Harry_Rakkel won on time"]

1. e4 {[%clk 0:03:00.9]} 1... e5 {[%clk 0:02:58.8]} 2. Nc3 {[%clk 0:03:00.3]}
2... Nc6 {[%clk 0:02:59.1]} 3. g3 {[%clk 0:02:59.6]} 3... Nf6 {[%clk 0:02:57.7]}
4. Bg2 {[%clk 0:02:59]} 4... Bb4 {[%clk 0:02:54.8]} 5. Nge2 {[%clk 0:02:56.7]}
5... O-O {[%clk 0:02:54.6]} 6. O-O {[%clk 0:02:55.8]} 6... Nd4 {[%clk
0:02:52.8]} 7. d3 {[%clk 0:02:52.3]} 7... c6 {[%clk 0:02:49.2]} 8. Nxd4 {[%clk
0:02:51.2]} 8... exd4 {[%clk 0:02:48.4]} 9. Ne2 {[%clk 0:02:51]} 9... Bc5 {[%clk
0:02:48.5]} 10. h3 {[%clk 0:02:47]} 10... d5 {[%clk 0:02:48.7]} 11. Kh2 {[%clk
0:02:38.7]} 11... dxe4 {[%clk 0:02:42.9]} 12. dxe4 {[%clk 0:02:38.5]} 12... Re8
{[%clk 0:02:43.4]} 13. Qd3 {[%clk 0:02:36.6]} 13... a5 {[%clk 0:02:29.8]} 14.
Rd1 {[%clk 0:02:23.7]} 14... b6 {[%clk 0:02:05.5]} 15. Nxd4 {[%clk 0:02:01.4]}
15... Ba6 {[%clk 0:02:01.6]} 16. c4 {[%clk 0:02:00.8]} 16... Bxd4 {[%clk
0:01:40.1]} 17. Qxd4 {[%clk 0:02:00.2]} 17... Qxd4 {[%clk 0:01:38]} 18. Rxd4
{[%clk 0:02:01.1]} 18... c5 {[%clk 0:01:37.6]} 19. Rd6 {[%clk 0:01:48.9]} 19...
Rab8 {[%clk 0:01:34.5]} 20. e5 {[%clk 0:01:05.4]} 20... Rxe5 {[%clk 0:01:24]}
21. Bf4 {[%clk 0:01:05.9]} 21... Ree8 {[%clk 0:01:18.4]} 22. b3 {[%clk
0:01:05.4]} 22... Ne4 {[%clk 0:00:31.8]} 23. Rc6 {[%clk 0:00:54]} 1-0

[Event "Late-Titled-Tuesday-Blitz-June-04-2024"]
[Site "Chess.com"]
[Date "2024.06.04"]
[Round "4"]
[White "th3d4rkness"]
[Black "mohssenbinaddi"]
[Result "0-1"]
[WhiteElo "2166"]
[BlackElo "2324"]
[TimeControl "180+1"]
[EndTime "14:37:24 PDT"]
[Termination "mohssenbinaddi won by resignation"]

1. e4 {[%clk 0:03:00.9]} 1... c6 {[%clk 0:03:00.9]} 2. d4 {[%clk 0:03:00.3]}
2... d5 {[%clk 0:02:59.4]} 3. e5 {[%clk 0:03:00.5]} 3... Bf5 {[%clk 0:02:56.9]}
4. h4 {[%clk 0:03:00]} 4... h5 {[%clk 0:02:55.2]} 5. Bg5 {[%clk 0:02:59.9]} 5...
Qa5+ {[%clk 0:02:54.2]} 6. Nd2 {[%clk 0:02:41.5]} 6... Nd7 {[%clk 0:02:20.3]} 7.
Bd3 {[%clk 0:02:38.6]} 7... Bxd3 {[%clk 0:02:11.2]} 8. cxd3 {[%clk 0:02:38]}
8... e6 {[%clk 0:02:07.4]} 9. Nf3 {[%clk 0:02:34.9]} 9... Ne7 {[%clk 0:02:02.6]}
10. O-O {[%clk 0:02:32.8]} 10... Nf5 {[%clk 0:01:59.6]} 11. a3 {[%clk
0:02:21.8]} 11... f6 {[%clk 0:01:57.5]} 12. exf6 {[%clk 0:02:16.7]} 12... gxf6
{[%clk 0:01:57.6]} 13. Bf4 {[%clk 0:02:09.5]} 13... Qb6 {[%clk 0:01:52.2]} 14.
Be3 {[%clk 0:02:04.4]} 14... Bd6 {[%clk 0:01:42.9]} 15. b4 {[%clk 0:02:01.5]}
15... O-O-O {[%clk 0:01:40.5]} 16. Nb3 {[%clk 0:01:56.6]} 16... Rdg8 {[%clk
0:01:37.4]} 17. Nc5 {[%clk 0:01:44.6]} 17... Nf8 {[%clk 0:01:24.9]} 18. Re1
{[%clk 0:01:32.1]} 18... Qc7 {[%clk 0:01:19.1]} 19. Kf1 {[%clk 0:01:26.3]} 19...
Qg7 {[%clk 0:01:19.4]} 20. g3 {[%clk 0:01:19.7]} 20... Qg4 {[%clk 0:00:47.5]}
21. Ra2 {[%clk 0:00:55.3]} 21... Bxg3 {[%clk 0:00:32.8]} 22. Ng5 {[%clk
0:00:41.9]} 22... Nxe3+ {[%clk 0:00:20.4]} 23. Rxe3 {[%clk 0:00:40.6]} 23...
Qxd1+ {[%clk 0:00:19.8]} 24. Kg2 {[%clk 0:00:40.5]} 24... fxg5 {[%clk
0:00:19.7]} 25. Rxg3 {[%clk 0:00:38.9]} 25... gxh4 {[%clk 0:00:19]} 26. Rxg8
{[%clk 0:00:36.5]} 26... Rxg8+ {[%clk 0:00:19.2]} 0-1

[Event "Late-Titled-Tuesday-Blitz-June-04-2024"]
[Site "Chess.com"]
[Date "2024.06.04"]
[Round "4"]
[White "Yaacovn"]
[Black "penguingm1"]
[Result "1-0"]
[WhiteElo "2809"]
[BlackElo "2929"]
[TimeControl "180+1"]
[EndTime "14:37:25 PDT"]
[Termination "Yaacovn won on time"]

1. d4 {[%clk 0:03:00.9]} 1... d5 {[%clk 0:02:59.8]} 2. Nf3 {[%clk 0:02:58.6]}
2... Nf6 {[%clk 0:02:53.9]} 3. c3 {[%clk 0:02:56.4]} 3... e6 {[%clk 0:02:52.3]}
4. Bf4 {[%clk 0:02:50.7]} 4... c5 {[%clk 0:02:51.2]} 5. e3 {[%clk 0:02:40]} 5...
Nc6 {[%clk 0:02:44.7]} 6. Nbd2 {[%clk 0:02:37.9]} 6... Nh5 {[%clk 0:02:44.9]} 7.
Be5 {[%clk 0:02:37.6]} 7... f6 {[%clk 0:02:41.9]} 8. Bg3 {[%clk 0:02:37.7]} 8...
Qb6 {[%clk 0:02:15.1]} 9. Qb3 {[%clk 0:02:36.7]} 9... Nxg3 {[%clk 0:01:55.4]}
10. hxg3 {[%clk 0:02:36.3]} 10... g6 {[%clk 0:01:53.9]} 11. Qc2 {[%clk
0:02:32.7]} 11... Kf7 {[%clk 0:01:40.4]} 12. Bd3 {[%clk 0:02:31.1]} 12... Ne7
{[%clk 0:01:11.4]} 13. dxc5 {[%clk 0:02:26.4]} 13... Qxc5 {[%clk 0:01:11.1]} 14.
e4 {[%clk 0:02:26.4]} 14... Bg7 {[%clk 0:00:58.6]} 15. exd5 {[%clk 0:02:21.8]}
15... exd5 {[%clk 0:00:47.2]} 16. Nb3 {[%clk 0:02:20.2]} 16... Qb6 {[%clk
0:00:46.1]} 17. O-O-O {[%clk 0:02:19.4]} 17... Bg4 {[%clk 0:00:42.9]} 18. Rde1
{[%clk 0:02:16.7]} 18... Rae8 {[%clk 0:00:33.7]} 19. Nbd4 {[%clk 0:02:13.9]}
19... h5 {[%clk 0:00:26.6]} 20. Nh4 {[%clk 0:02:05.8]} 20... Bh6+ {[%clk
0:00:19]} 21. Kb1 {[%clk 0:02:04]} 21... Rhg8 {[%clk 0:00:18.3]} 22. Bb5 {[%clk
0:01:52]} 22... Rc8 {[%clk 0:00:09]} 23. f3 {[%clk 0:01:38.5]} 23... Qxd4 {[%clk
0:00:05.8]} 24. cxd4 {[%clk 0:01:38.5]} 24... Rxc2 {[%clk 0:00:06.1]} 25. Kxc2
{[%clk 0:01:39.1]} 25... Bc8 {[%clk 0:00:06.2]} 26. Ba4 {[%clk 0:01:24.6]} 26...
g5 {[%clk 0:00:05.3]} 27. g4 {[%clk 0:01:13.3]} 27... gxh4 {[%clk 0:00:04.4]}
28. Rxh4 {[%clk 0:01:12.9]} 28... Bf4 {[%clk 0:00:02.3]} 29. Rxh5 {[%clk
0:01:10.4]} 29... Nc6 {[%clk 0:00:02]} 30. Kc3 {[%clk 0:01:06.1]} 30... Kg6
{[%clk 0:00:01.8]} 31. Bc2+ {[%clk 0:01:04.2]} 31... Kf7 {[%clk 0:00:02.1]} 32.
Bb3 {[%clk 0:01:03.8]} 32... Ne7 {[%clk 0:00:01.7]} 33. Rh7+ {[%clk 0:01:02.7]}
1-0

[Event "Late-Titled-Tuesday-Blitz-June-04-2024"]
[Site "Chess.com"]
[Date "2024.06.04"]
[Round "4"]
[White "Jeppesen08"]
[Black "HanSchut"]
[Result "0-1"]
[WhiteElo "2439"]
[BlackElo "2275"]
[TimeControl "180+1"]
[EndTime "14:37:29 PDT"]
[Termination "HanSchut won by checkmate"]

1. f4 {[%clk 0:02:54.4]} 1... d5 {[%clk 0:02:58.6]} 2. Nf3 {[%clk 0:02:54.3]}
2... Nh6 {[%clk 0:02:59.2]} 3. e3 {[%clk 0:02:53.2]} 3... g6 {[%clk 0:02:59.6]}
4. Be2 {[%clk 0:02:46.7]} 4... Bg7 {[%clk 0:02:59.7]} 5. O-O {[%clk 0:02:47.4]}
5... O-O {[%clk 0:03:00.2]} 6. d4 {[%clk 0:02:47.2]} 6... f6 {[%clk 0:02:59.5]}
7. c4 {[%clk 0:02:42]} 7... c6 {[%clk 0:02:58.9]} 8. Nc3 {[%clk 0:02:42]} 8...
Nf7 {[%clk 0:02:56.2]} 9. e4 {[%clk 0:02:39]} 9... dxe4 {[%clk 0:02:54.9]} 10.
Nxe4 {[%clk 0:02:39.9]} 10... e5 {[%clk 0:02:52.1]} 11. fxe5 {[%clk 0:02:30.8]}
11... fxe5 {[%clk 0:02:52.3]} 12. d5 {[%clk 0:02:31.1]} 12... Bf5 {[%clk
0:02:46.5]} 13. Neg5 {[%clk 0:02:26.5]} 13... e4 {[%clk 0:02:37]} 14. Nxf7
{[%clk 0:02:20.3]} 14... Qb6+ {[%clk 0:02:31.4]} 15. Kh1 {[%clk 0:01:56.4]}
15... exf3 {[%clk 0:02:31.4]} 16. Nh6+ {[%clk 0:01:34.1]} 16... Bxh6 {[%clk
0:02:25.3]} 17. Bxh6 {[%clk 0:01:35]} 17... fxe2 {[%clk 0:02:20.4]} 18. Qxe2
{[%clk 0:01:35.9]} 18... Nd7 {[%clk 0:01:55.9]} 19. Bxf8 {[%clk 0:00:35.5]}
19... Nxf8 {[%clk 0:01:55.4]} 20. g4 {[%clk 0:00:32.1]} 20... Bd7 {[%clk
0:01:55]} 21. Qe7 {[%clk 0:00:26.8]} 21... cxd5 {[%clk 0:01:45.6]} 22. Rf6
{[%clk 0:00:24.3]} 22... Qd4 {[%clk 0:01:31.6]} 23. Qf7+ {[%clk 0:00:11.4]}
23... Kh8 {[%clk 0:01:31.1]} 24. Raf1 {[%clk 0:00:12.1]} 24... Bc6 {[%clk
0:01:20]} 25. c5 {[%clk 0:00:06.4]} 25... Qe4+ {[%clk 0:01:10.5]} 26. Kg1 {[%clk
0:00:05.1]} 26... d4 {[%clk 0:01:07.1]} 27. R1f3 {[%clk 0:00:05.3]} 27... Qxg4+
{[%clk 0:01:06.1]} 28. Rg3 {[%clk 0:00:05.3]} 28... Qd1+ {[%clk 0:01:06]} 29.
Kf2 {[%clk 0:00:05.6]} 29... Re8 {[%clk 0:01:02.1]} 30. h3 {[%clk 0:00:01]}
30... Re2# {[%clk 0:00:59.8]} 0-1

[Event "Late-Titled-Tuesday-Blitz-June-04-2024"]
[Site "Chess.com"]
[Date "2024.06.04"]
[Round "4"]
[White "Shankland"]
[Black "grzechu96"]
[Result "1-0"]
[WhiteElo "2970"]
[BlackElo "2797"]
[TimeControl "180+1"]
[EndTime "14:37:33 PDT"]
[Termination "Shankland won by resignation"]

1. e4 {[%clk 0:03:00.9]} 1... e5 {[%clk 0:02:58.7]} 2. Nf3 {[%clk 0:03:00.9]}
2... Nc6 {[%clk 0:02:59.1]} 3. Bb5 {[%clk 0:03:01.3]} 3... a6 {[%clk 0:02:59.3]}
4. Bxc6 {[%clk 0:03:01.4]} 4... dxc6 {[%clk 0:02:59.3]} 5. O-O {[%clk
0:03:01.8]} 5... f6 {[%clk 0:02:58.3]} 6. d4 {[%clk 0:03:00.9]} 6... exd4 {[%clk
0:02:57.2]} 7. Nxd4 {[%clk 0:03:00.9]} 7... c5 {[%clk 0:02:47]} 8. Ne2 {[%clk
0:02:59.9]} 8... Qxd1 {[%clk 0:02:45.2]} 9. Rxd1 {[%clk 0:03:00.8]} 9... Bd7
{[%clk 0:02:45.8]} 10. Nbc3 {[%clk 0:02:59]} 10... O-O-O {[%clk 0:02:46]} 11.
Be3 {[%clk 0:02:58.4]} 11... Ne7 {[%clk 0:02:37]} 12. Bxc5 {[%clk 0:02:57.5]}
12... Ng6 {[%clk 0:02:33.6]} 13. Bxf8 {[%clk 0:02:56.5]} 13... Rhxf8 {[%clk
0:02:34.5]} 14. f3 {[%clk 0:02:48]} 14... Rde8 {[%clk 0:02:34.3]} 15. Ng3 {[%clk
0:02:46.5]} 15... Nh4 {[%clk 0:02:33.5]} 16. Kf2 {[%clk 0:02:44.5]} 16... f5
{[%clk 0:02:33.7]} 17. Rd2 {[%clk 0:02:36.1]} 17... g5 {[%clk 0:02:30.6]} 18.
exf5 {[%clk 0:02:35]} 18... Nxf5 {[%clk 0:02:30.5]} 19. Nxf5 {[%clk 0:02:34.4]}
19... Bxf5 {[%clk 0:02:31.4]} 20. Re1 {[%clk 0:02:33]} 20... Rxe1 {[%clk
0:02:24.4]} 21. Kxe1 {[%clk 0:02:33.9]} 21... Rf7 {[%clk 0:01:54.9]} 22. Nd5
{[%clk 0:02:28.4]} 22... b5 {[%clk 0:01:42.4]} 23. Ne3 {[%clk 0:02:24.9]} 23...
Be6 {[%clk 0:01:40.8]} 24. a3 {[%clk 0:02:23.4]} 24... a5 {[%clk 0:01:37.2]} 25.
c3 {[%clk 0:02:22.8]} 25... b4 {[%clk 0:01:31.7]} 26. cxb4 {[%clk 0:02:14.1]}
26... axb4 {[%clk 0:01:32.6]} 27. axb4 {[%clk 0:02:14.5]} 27... Rf4 {[%clk
0:01:32.5]} 28. Nc2 {[%clk 0:02:14.4]} 28... Bb3 {[%clk 0:01:31.3]} 29. Nd4
{[%clk 0:02:13.9]} 29... Bc4 {[%clk 0:01:26]} 30. Kf2 {[%clk 0:02:13.1]} 30...
Kb7 {[%clk 0:01:25.1]} 31. Ke3 {[%clk 0:02:10.3]} 31... Rf6 {[%clk 0:01:23.4]}
32. Rc2 {[%clk 0:02:08.6]} 32... Bf7 {[%clk 0:00:58.9]} 33. Rc5 {[%clk 0:02:08]}
33... Ra6 {[%clk 0:00:44.5]} 34. Ra5 {[%clk 0:02:04.5]} 34... Rxa5 {[%clk
0:00:44.6]} 35. bxa5 {[%clk 0:02:05.1]} 35... c5 {[%clk 0:00:45.2]} 36. Nc2
{[%clk 0:01:58.9]} 36... Ka6 {[%clk 0:00:39.7]} 37. b4 {[%clk 0:01:54.5]} 37...
Bb3 {[%clk 0:00:28.7]} 38. Na1 {[%clk 0:01:54.5]} 38... Ba4 {[%clk 0:00:29.3]}
39. bxc5 {[%clk 0:01:54.1]} 39... Kxa5 {[%clk 0:00:29.7]} 40. Kd4 {[%clk
0:01:54.4]} 40... Kb5 {[%clk 0:00:29.6]} 41. g3 {[%clk 0:01:52]} 41... Bd1
{[%clk 0:00:27.8]} 42. Kd5 {[%clk 0:01:49.5]} 42... Bxf3+ {[%clk 0:00:26.5]} 43.
Kd6 {[%clk 0:01:50]} 43... Kc4 {[%clk 0:00:23.8]} 44. Nc2 {[%clk 0:01:47.6]}
44... Kc3 {[%clk 0:00:15]} 45. Ne3 {[%clk 0:01:46.1]} 45... Kd4 {[%clk
0:00:14.1]} 46. Nf5+ {[%clk 0:01:44.7]} 46... Kd3 {[%clk 0:00:13.1]} 47. Ke5
{[%clk 0:01:31.6]} 47... Ke2 {[%clk 0:00:10.2]} 48. Nd4+ {[%clk 0:01:31.5]} 1-0